fUSD/lending_fUSD_20240916
["ID","MTS","AMOUNT","RATE_DAILY","PERIOD"]
[338336600,1726511432718,-150.0,0.00014487,2]
[338336601,1726511432727,-700.0,0.000145,5]
[338336602,1726511432736,-500.0,0.00014521,2]
[338336603,1726511432746,-700.0,0.000146,5]
[338336604,1726511432756,-316.0695372,0.00014621,2]
[338336605,1726511432768,-393.025,0.00014695,2]
[338336606,1726511432777,-155.242,0.00014695,2]
[338336607,1726511432786,-700.0,0.000147,5]
[338336608,1726511432795,-150.0,0.00014737,2]
[338336609,1726511432805,-150.0,0.00014738,2]
[338336610,1726511432814,-150.0,0.00014744,2]
[338336611,1726511432823,-150.0,0.00014746,2]
[338336612,1726511432834,-1065.35074307,0.00014793,2]
[338336613,1726511432843,-28392.586096,0.00014794,2]
[338336614,1726511432853,-212.373215,0.00014794,2]
[338336615,1726511432862,-8500.0,0.00014794,2]
[338336616,1726511432872,-195.38172942,0.00014794,2]
[338336617,1726511432881,-189.545591,0.00014795,2]
[338336618,1726511432890,-150.0,0.00014795,2]
[338336619,1726511432899,-557.82,0.000148,2]
[338336620,1726511432909,-928.0,0.000148,5]
[338336621,1726511432918,-865.694,0.00014802,2]
[338336622,1726511432927,-806.0,0.00014802,2]
[338336623,1726511432935,-1920.0,0.00014802,2]
[338336624,1726511432945,-248.0,0.00014802,2]
[338336625,1726511432954,-3345.0,0.00014802,2]
[338336626,1726511432963,-690.444,0.00014802,2]
[338336627,1726511432972,-448.334,0.00014802,2]
[338336628,1726511432980,-364.982,0.00014802,2]
[338336629,1726511432989,-150.0,0.00014802,2]
[338336630,1726511432998,-1146.0,0.00014802,2]
[338336631,1726511433008,-150.0,0.00014806,2]
[338336632,1726511433017,-150.0,0.00014824,2]
[338336633,1726511433027,-225.80218857,0.00014832,2]
[338336634,1726511433036,-150.0,0.00014845,2]
[338336635,1726511433046,-150.75966,0.0001485,2]
[338336636,1726511433056,-150.0,0.00014856,2]
[338336637,1726511433065,-150.0,0.00014869,2]
[338336638,1726511433074,-500.0,0.0001488,2]
[338336639,1726511433084,-321.92497364,0.0001489,2]
[338336640,1726511433094,-1065.35074307,0.00014896,2]
[338336641,1726511433103,-266.393,0.000149,2]
[338336642,1726511433113,-7412.77,0.000149,2]
[338336643,1726511433122,-154.65,0.000149,31]
[338336644,1726511433131,-154.65,0.000149,31]
[338336645,1726511433140,-154.65,0.000149,31]
[338336646,1726511433149,-154.65,0.000149,31]
[338336647,1726511433159,-154.65,0.000149,31]
[338336648,1726511433168,-154.65,0.000149,31]
[338336649,1726511433177,-154.65,0.000149,31]
[338336650,1726511433186,-156.2770892,0.000149,2]
[338336651,1726511433196,-390.42058661,0.000149,2]
[338336652,1726511433205,-2081.6165013,0.000149,2]
[338336653,1726511433214,-1500.0,0.00014901,2]
[338336654,1726511433224,-206.8351,0.00014925,2]
[338336655,1726511433233,-150.0,0.00014929,2]
[338336656,1726511433243,-150.0,0.00014938,2]
[338336657,1726511433253,-531.0,0.00014959,2]
[338336658,1726511433263,-150.0,0.00014967,2]
[338336659,1726511433273,-150.0,0.00014969,2]
[338336660,1726511433283,-161.15967668,0.00014973,2]
[338336661,1726511433293,-299.97250509,0.00014973,2]
[338336662,1726511433302,-500.0,0.00014973,2]
[338336663,1726511433312,-150.0,0.00014976,2]
[338336664,1726511433322,-153.31,0.0001498,2]
[338336665,1726511433331,-150.0,0.00014983,2]
[338336666,1726511433340,-242.45825038,0.00014986,2]
[338336667,1726511433350,-184.20907282,0.00014986,2]
[338336668,1726511433359,-271.1644128,0.00014986,2]
[338336669,1726511433369,-3958.52426494,0.0001499,3]
[338336670,1726511433378,-153.31,0.0001499,2]
[338336671,1726511433388,-3393.02079852,0.0001499,3]
[338336672,1726511433397,-113045.8107309,0.0001499,2]
[338336673,1726511433407,-96085.02528357,0.0001499,2]
[338336681,1726511433562,-2948.80265338,0.0001499,2]
[338336682,1726511433573,-3753.76120749,0.0001499,2]
[338336683,1726511433584,-1238.12203656,0.0001499,2]
[338336684,1726511433593,-9536.32772273,0.0001499,2]
[338336685,1726511433604,-85469.28390847,0.0001499,2]
[338336686,1726511433614,-82543.69658185,0.0001499,2]
[338336687,1726511433625,-281.40649717,0.0001499,2]
[338336688,1726511433636,-3094.63215291,0.0001499,2]
[338336689,1726511433651,-65.77684937,0.0001499,2]
[338336690,1726511433661,-1179.79195763,0.0001499,2]
[338336691,1726511433672,-2763.18092288,0.0001499,2]
[338336697,1726511438420,-1427.2185654,0.00014802,2]
[338336700,1726511438563,-607.0,0.00014802,2]
[338336701,1726511438580,-10322.6474346,0.00014802,2]
[338336702,1726511438589,-236.105,0.00014802,2]
[338336703,1726511438599,-6528.39412727,0.0001499,2]
[338336704,1726511438610,-11216.25702667,0.0001499,2]
[338336705,1726511438621,-12612.34474342,0.0001499,2]
[338336706,1726511438729,-42665.44375363,0.0001499,2]
[338336707,1726511438738,-595.7633765,0.0001499,2]
[338336708,1726511438748,-550.6813211,0.0001499,2]
[338336709,1726511438760,-505.5992656,0.0001499,2]
[338336710,1726511438769,-460.5172102,0.0001499,2]
[338336711,1726511438779,-415.4351547,0.0001499,2]
[338336712,1726511438789,-9549.5210348,0.0001499,2]
[338336713,1726511438798,-8826.8985077,0.0001499,2]
[338336714,1726511438808,-8104.2759805,0.0001499,2]
[338336715,1726511438817,-7381.6534533,0.0001499,2]
[338336716,1726511438826,-6659.0309262,0.0001499,2]
[338336718,1726511438836,-153.31,0.0001499,2]
[338336719,1726511438846,-153.31,0.0001499,2]
[338336721,1726511438854,-153.31,0.0001499,2]
[338336723,1726511438864,-153.31,0.0001499,2]
[338336725,1726511438873,-153.31,0.0001499,2]
[338336727,1726511438883,-153.31,0.0001499,2]
[338336729,1726511438892,-153.31,0.0001499,2]
[338336731,1726511438901,-153.31,0.0001499,2]
[338336733,1726511438911,-153.31,0.0001499,2]
[338336735,1726511438920,-153.31,0.0001499,2]
[338336737,1726511438928,-153.31,0.0001499,2]
[338336739,1726511438938,-153.31,0.0001499,2]
[338336741,1726511438947,-153.31,0.0001499,2]
[338336743,1726511438957,-153.31,0.0001499,2]
[338336744,1726511438966,-153.31,0.0001499,2]
[338336746,1726511438974,-150.0,0.00014997,2]
[338336748,1726511438984,-122065.9102808,0.00014998,2]
[338336750,1726511438993,-640.8454319,0.00014998,2]
[338336752,1726511439003,-10272.143562,0.00014998,2]
[338336754,1726511439012,-4261.40297226,0.00014999,2]
[338336756,1726511439023,-3448.4977529,0.00014999,2]
[338336758,1726511439032,-547.0,0.00015,2]
[338336760,1726511439041,-437988.44312596,0.00015,2]
[338336762,1726511439051,-648342.71607501,0.00015,2]
[338336764,1726511439060,-391690.19021674,0.00015,2]
[338336766,1726511439069,-482434.46373666,0.00015,2]
[338336768,1726511439081,-305.07545363,0.00015,2]
[338336770,1726511439092,-932.1635913,0.00015,2]
[338336772,1726511439104,-4677.82886025,0.00015,2]
[338336775,1726511439115,-463.99900633,0.00015,2]
[338336776,1726511439126,-3036.4706217,0.00015,2]
[338336900,1726511440360,-27000.0,0.00015,2]
[338336903,1726511440383,-926.0,0.00015,2]
[338336907,1726511440612,-1537.58516655,0.00015,2]
[338336908,1726511440623,-485.755,0.00015,2]
[338336909,1726511440634,-387.19774421,0.00015,2]
[338336927,1726511443397,-482.285006,0.00015,2]
[338336933,1726511443479,-2897.3,0.00015,2]
[338336934,1726511443683,-5949.81,0.00015,2]
[338336936,1726511445029,-2102.0004,0.00015,2]
[338336938,1726511446322,-1478.59617941,0.00015,2]
[338336939,1726511446336,-270.27,0.00015,2]
[338336941,1726511446417,-276.75,0.00014802,2]
[338336942,1726511446428,-167.024,0.00014802,2]
[338336943,1726511446437,-311.41100002,0.00015,2]
[338336944,1726511446448,-511.51535323,0.00015,2]
[338336945,1726511446499,-669.58337309,0.00015,2]
[338336946,1726511446510,-19889.19470919,0.00015,2]
[338336952,1726511603419,500.0,0.00026,120]
[338336954,1726511607898,200.0,0.00026,120]
[338336955,1726511612071,500.0,0.00026,120]
[338336956,1726511625686,200.0,0.00026,120]
[338336957,1726511638891,1982.78,0.00026,60]
[338336958,1726511670800,500.0,0.00026,60]
[338336959,1726511671277,500.0,0.00026,60]
[338336960,1726511671545,500.0,0.00026,60]
[338336961,1726511671829,500.0,0.00026,60]
[338336962,1726511672432,588.93,0.00026,60]
[338336963,1726511771036,1584.02,0.00026,60]
[338336964,1726511771604,1584.02,0.00026,60]
[338336965,1726511771880,1584.02,0.00026,60]
[338336966,1726511772135,1584.02,0.00026,60]
[338336967,1726511772398,1584.02,0.00026,60]
[338336968,1726511772659,1584.02,0.00026,60]
[338336969,1726511772932,1584.02,0.00026,60]
[338336970,1726511773354,1584.02,0.00026,60]
[338336971,1726511774172,1584.02,0.00026,60]
[338336972,1726511774799,1584.02,0.00026,60]
[338336973,1726511775083,1584.02,0.00026,60]
[338336974,1726511775471,1584.02,0.00026,60]
[338336975,1726511775607,1584.02,0.00026,60]
[338336976,1726511775918,1584.02,0.00026,60]
[338336977,1726511776190,1584.02,0.00026,60]
[338336978,1726511776445,1584.02,0.00026,60]
[338336979,1726511776722,1584.02,0.00026,60]
[338336980,1726511776997,1584.02,0.00026,60]
[338336981,1726511777255,1584.02,0.00026,60]
[338336982,1726511777538,1584.02,0.00026,60]
[338336983,1726511777801,1584.02,0.00026,60]
[338336984,1726511778082,1584.02,0.00026,60]
[338336985,1726511778331,1584.02,0.00026,60]
[338336986,1726511778677,1584.02573858,0.00026,60]
[338336987,1726511892265,230.34,0.00012065,2]
[338336988,1726512024718,1594.23,0.00026,60]
[338336989,1726512024993,1594.23,0.00026,60]
[338336990,1726512025242,1594.23,0.00026,60]
[338336991,1726512025515,1594.23,0.00026,60]
[338336992,1726512025875,1594.23,0.00026,60]
[338336993,1726512026129,1594.23,0.00026,60]
[338336994,1726512026431,1594.23,0.00026,60]
[338336995,1726512026692,1594.23,0.00026,60]
[338336996,1726512026951,1594.23,0.00026,60]
[338336997,1726512027213,1594.23,0.00026,60]
[338336998,1726512027473,1594.23,0.00026,60]
[338336999,1726512027741,1594.23,0.00026,60]
[338337000,1726512028548,1594.23,0.00026,60]
[338337001,1726512028817,1594.23,0.00026,60]
[338337002,1726512029087,1594.23,0.00026,60]
[338337003,1726512029862,1594.23,0.00026,60]
[338337004,1726512030136,1594.23,0.00026,60]
[338337005,1726512030409,1594.23,0.00026,60]
[338337006,1726512031266,1594.23,0.00026,60]
[338337007,1726512031544,1594.23,0.00026,60]
[338337008,1726512031953,1594.23,0.00026,60]
[338337009,1726512032212,1594.23,0.00026,60]
[338337010,1726512032500,1594.23,0.00026,60]
[338337011,1726512032782,1594.27,0.00026,60]
[338337013,1726512171240,200.0,0.00025999,60]
[338337014,1726512187825,1791.70738903,0.00026,60]
[338337016,1726512474739,289.33,0.00012064,2]
[338337039,1726512559160,200.0,0.00026,60]
[338337041,1726512571150,200.0,0.00026,60]
[338337046,1726512631557,-156.26,0.00013937,2]
[338337047,1726512631567,-432.73,0.00013941,2]
[338337048,1726512631576,-250.0,0.00013941,2]
[338337049,1726512631585,-200.0,0.00013965,2]
[338337050,1726512631594,-264.35,0.00013965,2]
[338337051,1726512631603,-1000.0,0.00013968,2]
[338337052,1726512631612,-250.0,0.00013968,2]
[338337053,1726512631621,-1.69487565,0.00013968,2]
[338337054,1726512631632,-514.24512435,0.00013968,2]
[338337055,1726512631643,-250.0,0.00013968,2]
[338337056,1726512631652,-314.08,0.00013975,2]
[338337057,1726512631661,-303.62678122,0.00013979,2]
[338337058,1726512631673,-10.45321878,0.00013979,2]
[338337059,1726512631682,-314.08,0.00013982,2]
[338337060,1726512631691,-314.08,0.00013986,2]
[338337061,1726512631700,-73.41045439,0.00013988,2]
[338337062,1726512631712,-413.66954561,0.00013988,2]
[338337063,1726512631721,-314.08,0.0001399,2]
[338337064,1726512631730,-59.97582548,0.00013993,2]
[338337065,1726512631741,-254.10417452,0.00013993,2]
[338337066,1726512631750,-174.06,0.00014019,2]
[338337067,1726512631759,-289.33,0.00014328,2]
[338337068,1726512631769,-91.64986159,0.000147,2]
[338337069,1726512631779,-315.0,0.000147,2]
[338337070,1726512631791,-95.38013841,0.000147,2]
[338337071,1726512631800,-192.24,0.00014734,2]
[338337072,1726512631809,-248.0,0.00014802,2]
[338337073,1726512631817,-1058.82487972,0.00014802,2]
[338337074,1726512631828,-858.17512028,0.00014802,2]
[338337075,1726512631837,-1647.653,0.00014802,2]
[338337076,1726512631846,-803.0,0.00014802,2]
[338337077,1726512631855,-150.0,0.00014802,2]
[338337078,1726512631864,-150.0,0.0001485,2]
[338337079,1726512631873,-500.0,0.0001488,2]
[338337080,1726512631882,-193.40085634,0.000149,2]
[338337081,1726512631892,-300.73,0.000149,2]
[338337082,1726512631901,-154.74,0.000149,31]
[338337083,1726512631911,-154.74,0.000149,31]
[338337084,1726512631919,-154.74,0.000149,31]
[338337085,1726512631929,-154.74,0.000149,31]
[338337086,1726512631938,-154.74,0.000149,31]
[338337087,1726512631947,-154.74,0.000149,31]
[338337088,1726512631956,-154.74,0.000149,31]
[338337090,1726512631965,-722.4460651,0.000149,2]
[338337092,1726512631974,-745.00558232,0.000149,2]
[338337094,1726512631982,-150.0,0.00014989,2]
[338337096,1726512631991,-2106.00887648,0.0001499,3]
[338337097,1726512632000,-4038.62014437,0.0001499,3]
[338337099,1726512632009,-2000.0,0.0001499,2]
[338337100,1726512632018,-155.24242678,0.0001499,2]
[338337101,1726512632027,-314.42,0.0001499,2]
[338337102,1726512632037,-28270.3410106,0.0001499,3]
[338337103,1726512632046,-438.06,0.0001499,3]
[338337104,1726512632055,-151.9,0.0001499,2]
[338337105,1726512632063,-283502.96167506,0.00015,2]
[338337106,1726512632074,-82982.30087,0.00015,2]
[338337107,1726512632086,-1339.32568212,0.00015,2]
[338337108,1726512632096,-4036.74748476,0.00015,2]
[338337109,1726512632110,-7494.83037917,0.00015,2]
[338337110,1726512632121,-7453.55953814,0.00015,2]
[338337111,1726512632131,-9925.73485824,0.00015,2]
[338337112,1726512632150,-501.23538144,0.00015,2]
[338337113,1726512632161,-1644.74828177,0.00015,2]
[338337114,1726512632170,-1258.96478809,0.00015,2]
[338337115,1726512632181,-3421.55845167,0.00015,2]
[338337116,1726512632195,-2228.53585342,0.00015,2]
[338337117,1726512632209,-474.46635641,0.00015,2]
[338337118,1726512632221,-740.97,0.00015,2]
[338337119,1726512632233,-2862.03116841,0.00015,2]
[338337120,1726512632243,-603.91888408,0.00015,2]
[338337121,1726512632254,-1697.0288294,0.00015,2]
[338337122,1726512632266,-14664.77099999,0.00015,2]
[338337123,1726512632279,-2408.87747833,0.00015,2]
[338337124,1726512632290,-19289.99999953,0.00015,2]
[338337125,1726512632301,-619.65174307,0.00015,2]
[338337126,1726512632316,-497.48514,0.00015,2]
[338337127,1726512632327,-6683.26958659,0.00015,2]
[338337128,1726512632338,-1720.82317157,0.00015,2]
[338337129,1726512632348,-329.84572663,0.00015,2]
[338337130,1726512632360,-910.67391534,0.00015,2]
[338337131,1726512632372,-636.79253411,0.00015,2]
[338337134,1726512637630,-314.08,0.00013997,2]
[338337135,1726512637640,-314.08,0.00014001,2]
[338337136,1726512637650,-200.94102755,0.00014004,2]
[338337137,1726512637664,-113.13897245,0.00014004,2]
[338337138,1726512637673,-314.08,0.00014008,2]
[338337139,1726512637683,-314.08,0.00014012,2]
[338337140,1726512637692,-314.08,0.00014015,2]
[338337141,1726512637700,-314.08,0.00014019,2]
[338337142,1726512637709,-314.08,0.00014023,2]
[338337143,1726512637718,-314.08,0.00014026,2]
[338337144,1726512637728,-314.08,0.0001403,2]
[338337145,1726512637737,-314.08,0.00014034,2]
[338337146,1726512637745,-314.08,0.00014037,2]
[338337147,1726512637754,-314.08,0.00014041,2]
[338337148,1726512637763,-314.08,0.00014045,2]
[338337149,1726512637772,-1475.04186583,0.00015,2]
[338337150,1726512637783,-10984.87289899,0.00015,2]
[338337151,1726512637794,-992.17877827,0.00015,2]
[338337152,1726512637805,-887.62653569,0.00015,2]
[338337153,1726512637815,-33624.92472288,0.00015,2]
[338337154,1726512637826,-509.16789362,0.00015,2]
[338337155,1726512637837,-585.3,0.00015,2]
[338337156,1726512637913,-310342.41646542,0.00015,2]
[338337157,1726512637923,-329952.88692426,0.00015,2]
[338337158,1726512637942,-5356.14979045,0.00015,2]
[338337159,1726512637951,-13587.61833889,0.00015,2]
[338337160,1726512638051,-1035.7815816,0.00015,2]
[338337161,1726512638062,-1959.02575318,0.00015,2]
[338337162,1726512638074,-7969.17193469,0.00015,2]
[338337163,1726512638085,-3458.69314524,0.00015,2]
[338337165,1726512638096,-1019.83248483,0.00015,2]
[338337167,1726512638108,-2613.31048833,0.00015,2]
[338337274,1726512639596,-5135.50302712,0.00015,2]
[338337275,1726512639608,-2303.5,0.00015,2]
[338337276,1726512639618,-2266.00000008,0.00015,2]
[338337277,1726512639629,-300.14566,0.00015,2]
[338337278,1726512639640,-889.49999995,0.00015,2]
[338337279,1726512639651,-998.56,0.00015,2]
[338337280,1726512639662,-400.075,0.00015,2]
[338337281,1726512639673,-1663.5002,0.00015,2]
[338337282,1726512639683,-1986.34492326,0.00015,2]
[338337283,1726512639694,-304.33735203,0.00015,2]
[338337284,1726512639715,-475127.56990678,0.00015,2]
[338337285,1726512639726,-6888.08204857,0.00015,2]
[338337286,1726512639737,-1066.42946239,0.00015,2]
[338337287,1726512639747,-1847.64047672,0.00015,2]
[338337288,1726512639758,-1324.73356299,0.00015,2]
[338337289,1726512639769,-350.9881679,0.00015,2]
[338337290,1726512639780,-621.51461131,0.00015,2]
[338337291,1726512639791,-33598.95918226,0.00015,2]
[338337292,1726512639802,-12034.83965904,0.00015,2]
[338337293,1726512639811,-26686.58100551,0.00015,2]
[338337294,1726512639822,-476.45777715,0.00015,2]
[338337295,1726512639832,-578.06080476,0.00015,2]
[338337296,1726512639843,-602.7973578,0.00015,2]
[338337297,1726512639853,-478.75263346,0.00015,2]
[338337298,1726512639864,-6812.06132842,0.00015,2]
[338337299,1726512639875,-660.549,0.00015,2]
[338337300,1726512639885,-844.59940541,0.00015,2]
[338337301,1726512639900,-83348.20398924,0.00015,2]
[338337308,1726512642594,-1954947.16989089,0.00015,2]
[338337309,1726512642603,-200.0,0.00015,2]
[338337310,1726512642612,-200.0,0.00015,2]
[338337311,1726512642620,-200.0,0.00015,2]
[338337312,1726512642629,-200.0,0.00015,2]
[338337313,1726512642638,-200.0,0.00015,2]
[338337314,1726512642652,-200.0,0.00015,2]
[338337315,1726512642660,-200.0,0.00015,2]
[338337316,1726512642670,-200.0,0.00015,2]
[338337317,1726512642679,-200.0,0.00015,2]
[338337318,1726512642688,-200.0,0.00015,2]
[338337319,1726512642697,-200.0,0.00015,2]
[338337320,1726512642706,-200.0,0.00015,2]
[338337321,1726512642716,-200.0,0.00015,2]
[338337322,1726512642724,-200.0,0.00015,2]
[338337323,1726512642733,-200.0,0.00015,2]
[338337324,1726512642742,-200.0,0.00015,2]
[338337325,1726512642752,-200.0,0.00015,2]
[338337326,1726512642761,-200.0,0.00015,2]
[338337327,1726512642770,-200.0,0.00015,2]
[338337328,1726512642779,-200.0,0.00015,2]
[338337329,1726512642787,-200.0,0.00015,2]
[338337330,1726512642797,-200.0,0.00015,2]
[338337331,1726512642806,-200.0,0.00015,2]
[338337332,1726512642815,-200.0,0.00015,2]
[338337333,1726512642824,-200.0,0.00015,2]
[338337334,1726512642833,-200.0,0.00015,2]
[338337335,1726512642842,-200.0,0.00015,2]
[338337337,1726512642851,-200.0,0.00015,2]
[338337338,1726512642860,-200.0,0.00015,2]
[338337339,1726512642869,-200.0,0.00015,2]
[338337341,1726512642878,-200.0,0.00015,2]
[338337342,1726512642887,-200.0,0.00015,2]
[338337344,1726512642897,-200.0,0.00015,2]
[338337346,1726512642906,-200.0,0.00015,2]
[338337348,1726512642916,-200.0,0.00015,2]
[338337349,1726512642924,-200.0,0.00015,2]
[338337351,1726512642933,-200.0,0.00015,2]
[338337353,1726512642942,-200.0,0.00015,2]
[338337355,1726512642952,-200.0,0.00015,2]
[338337357,1726512642961,-200.0,0.00015,2]
[338337358,1726512642971,-200.0,0.00015,2]
[338337359,1726512642980,-200.0,0.00015,2]
[338337360,1726512642989,-200.0,0.00015,2]
[338337361,1726512642998,-200.0,0.00015,2]
[338337362,1726512643007,-200.0,0.00015,2]
[338337363,1726512643016,-200.0,0.00015,2]
[338337364,1726512643026,-200.0,0.00015,2]
[338337365,1726512643035,-200.0,0.00015,2]
[338337366,1726512643044,-200.0,0.00015,2]
[338337367,1726512643054,-200.0,0.00015,2]
[338337368,1726512643064,-269982.18753319,0.00015,2]
[338337369,1726512643073,-2878.45980091,0.00015,7]
[338337370,1726512643083,-562436.03539192,0.00015,2]
[338337372,1726512643097,-575110.0,0.00015,2]
[338337373,1726512643107,-132670.0,0.00015,2]
[338337374,1726512643118,-336.84091214,0.00015,2]
[338337375,1726512643129,-500.57827625,0.00015,2]
[338337376,1726512643141,-1202.82442801,0.00015,2]
[338337377,1726512644200,-13190.16168377,0.00015,2]
[338337379,1726512645606,-755.24260282,0.00015,2]
[338337380,1726512645726,-659.48654881,0.00015,2]
[338337381,1726512645737,-2008.43148739,0.00015,2]
[338337382,1726512645853,-1602.13887615,0.00015,2]
[338337383,1726512645864,-5382.015,0.00015,2]
[338337503,1726512895086,500.0,0.00026,60]
[338337504,1726512895368,500.0,0.00026,60]
[338337505,1726512895649,500.0,0.00026,60]
[338337506,1726512895911,500.0,0.00026,60]
[338337507,1726512896186,157.44,0.00026,60]
[338337508,1726512916404,1050.0,0.00011,2]
[338337509,1726512985540,500.0,0.00026,60]
[338337510,1726512985913,500.0,0.00026,60]
[338337511,1726512986166,500.0,0.00026,60]
[338337512,1726512986438,500.0,0.00026,60]
[338337513,1726512986716,500.0,0.00026,60]
[338337514,1726512986995,500.0,0.00026,60]
[338337515,1726512987296,500.0,0.00026,60]
[338337516,1726512987558,500.0,0.00026,60]
[338337517,1726512987860,500.0,0.00026,60]
[338337518,1726512988284,500.0,0.00026,60]
[338337519,1726512988413,500.0,0.00026,60]
[338337520,1726512988666,500.0,0.00026,60]
[338337521,1726512988926,500.0,0.00026,60]
[338337522,1726512989195,500.0,0.00026,60]
[338337523,1726512989464,500.0,0.00026,60]
[338337524,1726512989728,500.0,0.00026,60]
[338337525,1726512989993,500.0,0.00026,60]
[338337526,1726512990277,500.0,0.00026,60]
[338337527,1726512990557,500.0,0.00026,60]
[338337528,1726512990984,500.0,0.00026,60]
[338337529,1726512991231,500.0,0.00026,60]
[338337530,1726512991488,576.01,0.00026,60]
[338337531,1726513055654,283.2,0.00011974,2]
[338337532,1726513116342,153.33,0.00010959,2]
[338337533,1726513188613,500.00000001,0.00026,60]
[338337536,1726513225832,500.0,0.00026,60]
[338337537,1726513226126,156.45,0.00026,60]
[338337538,1726513416069,150.0,0.00026,60]
[338337539,1726513554078,317.59,0.00011884,2]
[338337543,1726513663982,162.09,0.00010959,2]
[338337563,1726513831734,-200.0,0.00013595,2]
[338337564,1726513831743,-162.48,0.00013699,2]
[338337565,1726513831753,-237.52,0.00013739,2]
[338337566,1726513831766,-536.83568415,0.00013739,2]
[338337567,1726513831968,-2988.82431585,0.00013739,2]
[338337568,1726513831977,-250.0,0.00013753,2]
[338337569,1726513831986,-157.65,0.00013767,2]
[338337570,1726513831995,-300.0,0.00013767,2]
[338337571,1726513832005,-1500.0,0.00013768,2]
[338337572,1726513832014,-217.67,0.00013788,2]
[338337573,1726513832023,-506.86,0.00013788,2]
[338337574,1726513832033,-1000.0,0.00013797,2]
[338337575,1726513832041,-287.05,0.00013918,2]
[338337576,1726513832051,-1487.8,0.00013999,2]
[338337577,1726513832060,-500.0,0.00014,2]
[338337579,1726513832069,-500.0,0.00014,2]
[338337581,1726513832079,-553.2,0.00014,2]
[338337583,1726513832088,-500.0,0.00014,2]
[338337584,1726513832097,-500.0,0.00014,2]
[338337585,1726513832107,-500.0,0.00014,2]
[338337587,1726513832115,-522.37,0.00014,2]
[338337590,1726513832124,-500.0,0.00014,2]
[338337592,1726513832134,-2910.91323503,0.000141,2]
[338337594,1726513832143,-291.87,0.00014145,2]
[338337597,1726513832152,-317.59,0.00014148,2]
[338337599,1726513832161,-427.94,0.000142,2]
[338337602,1726513832170,-1505.42,0.000142,2]
[338337604,1726513832181,-150.0,0.000142,2]
[338337606,1726513832190,-357.7,0.000142,2]
[338337608,1726513832200,-427.4,0.000142,2]
[338337610,1726513832209,-844.56,0.000142,2]
[338337612,1726513832219,-300.0,0.000142,2]
[338337614,1726513832228,-150.0,0.00014299,2]
[338337616,1726513832237,-150.0,0.000143,2]
[338337618,1726513832246,-357.82,0.000143,2]
[338337620,1726513832255,-427.94,0.000143,2]
[338337622,1726513832263,-449.0,0.000143,2]
[338337624,1726513832272,-150.0,0.000143,2]
[338337626,1726513832281,-150.0,0.000143,2]
[338337628,1726513832291,-217.85,0.000143,2]
[338337630,1726513832299,-150.0,0.000143,2]
[338337632,1726513832311,-150.0,0.000143,2]
[338337634,1726513832320,-150.0,0.000143,2]